[Event "84th ESP-ch 2019"]
[Site "Marbella"]
[Date "2019.11.20"]
[Round "5.36"]
[White "Ruiz Buendia, Miguel"]
[Black "Donado-Mazarron Gomez, Miguel"]
[Result "1-0"]
[ECO "B20"]
[WhiteElo "1875"]
[BlackElo "2171"]
[Annotator "ChessBase"]
[PlyCount "111"]
[EventDate "2019.11.16"]
[EventType "swiss"]
[EventCountry "ESP"]
[SourceTitle "playchess.com"]
[Source "ChessBase"]
[SourceQuality "1"]
[TimeControl "5400+30"]

1. e4 {[%emt 0:00:00]} c5 {[%emt 0:01:22]} 2. b3 {[%emt 0:00:00]} Nf6 {[%emt 0:00:53]} 3. e5 {[%emt 0:00:00]} Nd5 {[%emt 0:00:05]} 4. Nf3 {[%emt 0:00:00]} g6 {[%emt 0:00:30]} 5. Bb2 {[%emt 0:00:00]} Bg7 {[%emt 0:00:11]} 6. Nc3 {[%emt 0:00:02]} Nf4 {[%emt 0:06:34]} 7. g3 {[%emt 0:04:59]} Ne6 {[%emt 0:00:07]} 8. Bc4 {[%emt 0:02:54]} Nc6 {[%emt 0:00:45]} 9. Bxe6 {[%emt 0:10:46]} dxe6 {[%emt 0:00:22]} 10. Ne4 {[%emt 0:04:16]} Nxe5 11. Nxe5 {[%emt 0:19:43]} Qd5 {[%emt 0:12:07]} 12. Qf3 {[%emt 0:04:23]} Bxe5 {[%emt 0:02:16]} 13. c4 {[%emt 0:01:36]} Bxb2 {[%emt 0:04:29]} 14. cxd5 {[%emt 0:00:35]} Bxa1 {[%emt 0:00:35]} 15. dxe6 {[%emt 0:01:34]} O-O {[%emt 0:05:21]} 16. Nxc5 {[%emt 0:04:57]} Bd4 {[%emt 0:01:57]} 17. Nd7 {[%emt 0:04:56]} Bxd7 {[%emt 0:02:06]} 18. exd7 {[%emt 0:00:13]} Rfd8 {[%emt 0:03:54]} 19. Qxb7 {[%emt 0:01:56]} Rab8 {[%emt 0:03:23]} 20. Qc7 {[%emt 0:02:21]} Bb6 {[%emt 0:02:10]} 21. Qc6 {[%emt 0:01:02]} Ba5 {[%emt 0:00:23]} 22. O-O {[%emt 0:01:33]} Rb6 {[%emt 0:03:10]} 23. Qa4 {[%emt 0:06:14]} Bxd2 {[%emt 0:01:26]} 24. Qxa7 {[%emt 0:03:25]} Rd6 {[%emt 0:00:08]} 25. Qc5 {[%emt 0:01:18]} R8xd7 {[%emt 0:00:36]} 26. Rd1 {[%emt 0:01:35]} Rd5 {[%emt 0:04:25]} 27. Qc2 {[%emt 0:01:12]} e5 {[%emt 0:00:50]} 28. Kf1 {[%emt 0:00:47]} Kg7 {[%emt 0:01:56]} 29. Ke2 {[%emt 0:01:43]} Bb4 {[%emt 0:01:08]} 30. Rxd5 {[%emt 0:01:07]} Rxd5 {[%emt 0:00:01]} 31. Qe4 {[%emt 0:01:42]} Rd2+ {[%emt 0:01:20]} 32. Ke3 {[%emt 0:01:22]} Bc3 {[%emt 0:00:35]} 33. Qc4 {[%emt 0:01:36]} Ba5 {[%emt 0:00:46]} 34. a3 {[%emt 0:07:53]} Ra2 {[%emt 0:01:02]} 35. Qc5 {[%emt 0:01:45]} Bd2+ {[%emt 0:00:50]} 36. Kd3 {[%emt 0:00:39]} Bg5 {[%emt 0:03:37]} 37. Qxe5+ {[%emt 0:00:54]} Bf6 {[%emt 0:00:01]} 38. Qc5 {[%emt 0:00:20]} Rb2 {[%emt 0:00:21]} 39. Qb6 {[%emt 0:00:10]} Rb1 {[%emt 0:00:29]} 40. a4 {[%emt 0:00:47]} Rd1+ {[%emt 0:00:27]} 41. Kc2 {[%emt 0:00:20]} Rd5 {[%emt 0:00:11]} 42. Qc6 {[%emt 0:00:58]} Re5 {[%emt 0:00:33]} 43. b4 {[%emt 0:01:19]} Re2+ {[%emt 0:00:09]} 44. Kd3 {[%emt 0:00:36]} Rxf2 {[%emt 0:00:12]} 45. a5 {[%emt 0:01:04]} Rb2 {[%emt 0:00:37]} 46. b5 {[%emt 0:00:54]} Rb3+ {[%emt 0:00:33]} 47. Kc2 {[%emt 0:00:36]} Rb2+ {[%emt 0:00:17]} 48. Kd3 {[%emt 0:00:30]} Rb3+ {[%emt 0:00:07]} 49. Ke4 {[%emt 0:00:14]} Rb4+ {[%emt 0:00:21]} 50. Kd5 {[%emt 0:00:28]} Rd4+ {[%emt 0:01:11]} 51. Kc5 {[%emt 0:00:06]} Rd2 {[%emt 0:00:07]} 52. a6 {[%emt 0:01:01]} Bd4+ {[%emt 0:00:34]} 53. Kc4 {[%emt 0:00:58]} Bg1 {[%emt 0:00:25]} 54. Kc3 {[%emt 0:00:54]} Ra2 {[%emt 0:00:34]} 55. Kb3 {[%emt 0:00:08]} Ra5 {[%emt 0:00:19]} 56. Qc3+ {[%emt 0:00:06]} 1-0

[Event "84th ESP-ch 2019"]
[Site "Marbella"]
[Date "2019.11.20"]
[Round "5.37"]
[White "Jaime Montalvan, Luis Felipe"]
[Black "Diaz Mino, Daniel"]
[Result "0-1"]
[ECO "A16"]
[WhiteElo "2167"]
[BlackElo "1953"]
[Annotator "ChessBase"]
[PlyCount "114"]
[EventDate "2019.11.16"]
[EventType "swiss"]
[EventCountry "ESP"]
[SourceTitle "playchess.com"]
[Source "ChessBase"]
[SourceQuality "1"]
[TimeControl "5400+30"]

1. c4 Nf6 {[%emt 0:00:20]} 2. Nc3 {[%emt 0:00:12]} g6 {[%emt 0:00:21]} 3. g3 {[%emt 0:02:14]} Bg7 {[%emt 0:00:24]} 4. Bg2 {[%emt 0:00:05]} O-O {[%emt 0:00:07]} 5. d3 {[%emt 0:00:25]} d6 {[%emt 0:01:16]} 6. e3 {[%emt 0:00:33]} Nbd7 {[%emt 0:03:14]} 7. Nge2 {[%emt 0:00:25]} Rb8 {[%emt 0:01:02]} 8. O-O {[%emt 0:00:52]} b6 {[%emt 0:01:00]} 9. Nd4 {[%emt 0:02:43]} Bb7 {[%emt 0:08:20]} 10. Nc6 {[%emt 0:01:06]} Bxc6 {[%emt 0:00:34]} 11. Bxc6 {[%emt 0:00:04]} Ne5 {[%emt 0:03:42]} 12. Bg2 {[%emt 0:00:12]} c5 {[%emt 0:01:01]} 13. f4 {[%emt 0:03:19]} Ned7 {[%emt 0:00:44]} 14. Bd2 {[%emt 0:00:53]} a6 {[%emt 0:03:04]} 15. a4 {[%emt 0:03:41]} Qc7 {[%emt 0:01:43]} 16. Qe2 e6 {[%emt 0:03:12]} 17. g4 {[%emt 0:11:48]} Rfd8 {[%emt 0:04:11]} 18. g5 {[%emt 0:19:31]} Ne8 {[%emt 0:00:59]} 19. Qg4 {[%emt 0:00:16]} f5 {[%emt 0:05:04]} 20. gxf6 {[%emt 0:00:39]} Nexf6 {[%emt 0:02:59]} 21. Qxe6+ {[%emt 0:00:11]} Kh8 {[%emt 0:00:33]} 22. Rae1 {[%emt 0:02:20]} Rf8 {[%emt 0:02:29]} 23. Rf3 {[%emt 0:01:33]} Rbe8 {[%emt 0:02:38]} 24. Qh3 {[%emt 0:00:05]} Nb8 {[%emt 0:01:39]} 25. Qh4 {[%emt 0:06:00]} Nc6 {[%emt 0:13:01]} 26. Rh3 {[%emt 0:01:46]} h6 {[%emt 0:03:31]} 27. Nd5 {[%emt 0:04:29]} Nxd5 {[%emt 0:01:22]} 28. cxd5 {[%emt 0:03:38]} Nb4 {[%emt 0:01:14]} 29. Bc3 {[%emt 0:00:31]} Kh7 {[%emt 0:07:30]} 30. Be4 {[%emt 0:00:15]} Qf7 {[%emt 0:05:26]} 31. Re2 {[%emt 0:17:45]} Na2 {[%emt 0:09:11]} 32. Rg2 {[%emt 0:06:26]} Rxe4 33. dxe4 {[%emt 0:00:04]} Nxc3 {[%emt 0:06:37]} 34. bxc3 {[%emt 0:00:02]} Re8 {[%emt 0:02:39]} 35. Rhg3 {[%emt 0:11:23]} Bf6 {[%emt 0:03:39]} 36. Qh3 {[%emt 0:00:27]} Rg8 {[%emt 0:00:53]} 37. c4 {[%emt 0:00:28]} Qe8 {[%emt 0:00:40]} 38. Qe6 {[%emt 0:00:17]} Qxe6 {[%emt 0:01:20]} 39. dxe6 {[%emt 0:00:02]} Be7 {[%emt 0:00:57]} 40. Rb2 {[%emt 0:01:23]} Rb8 {[%emt 0:00:40]} 41. f5 {[%emt 0:01:00]} g5 {[%emt 0:00:20]} 42. Kf2 Kg7 43. h4 {[%emt 0:01:42]} Kf6 {[%emt 0:00:13]} 44. hxg5+ {[%emt 0:00:12]} hxg5 {[%emt 0:00:02]} 45. Kf3 {[%emt 0:00:20]} Ke5 {[%emt 0:00:55]} 46. Rg1 {[%emt 0:00:11]} Rb7 {[%emt 0:00:42]} 47. Rgb1 {[%emt 0:01:01]} Bd8 {[%emt 0:00:57]} 48. a5 {[%emt 0:00:22]} g4+ {[%emt 0:00:29]} 49. Ke2 {[%emt 0:01:01]} Kxe4 {[%emt 0:00:31]} 50. Rxb6 {[%emt 0:00:26]} Rh7 {[%emt 0:00:43]} 51. Rf1 {[%emt 0:00:23]} g3 {[%emt 0:00:48]} 52. Rf4+ {[%emt 0:00:25]} Ke5 {[%emt 0:00:03]} 53. Kf3 {[%emt 0:00:35]} Bxb6 {[%emt 0:00:30]} 54. axb6 {[%emt 0:00:02]} Kf6 55. Ke4 {[%emt 0:01:03]} g2 {[%emt 0:00:45]} 56. b7 {[%emt 0:00:31]} Rxb7 {[%emt 0:00:26]} 57. Rg4 {[%emt 0:00:06]} Rg7 {[%emt 0:00:09]} 0-1

[Event "84th ESP-ch 2019"]
[Site "Marbella"]
[Date "2019.11.20"]
[Round "5.38"]
[White "Guadamuro Torrente, Anabel"]
[Black "Juan Mas, Santiago"]
[Result "1/2-1/2"]
[ECO "B00"]
[WhiteElo "2145"]
[BlackElo "1930"]
[Annotator "ChessBase"]
[PlyCount "102"]
[EventDate "2019.11.16"]
[EventType "swiss"]
[EventCountry "ESP"]
[SourceTitle "playchess.com"]
[Source "ChessBase"]
[SourceQuality "1"]
[TimeControl "5400+30"]

1. e4 {[%emt 0:00:00]} Nc6 {[%emt 0:00:05]} 2. d4 {[%emt 0:03:59]} d5 {[%emt 0:00:12]} 3. e5 {[%emt 0:01:38]} f6 {[%emt 0:01:51]} 4. f4 {[%emt 0:12:20]} Bf5 {[%emt 0:04:47]} 5. c3 {[%emt 0:02:42]} Nh6 {[%emt 0:03:51]} 6. Nf3 {[%emt 0:02:18]} g6 {[%emt 0:01:30]} 7. Be2 {[%emt 0:02:53]} Bg7 {[%emt 0:03:31]} 8. Nbd2 {[%emt 0:05:47]} O-O 9. Nf1 {[%emt 0:14:06]} Kh8 {[%emt 0:11:08]} 10. Ng3 {[%emt 0:02:30]} Bg4 {[%emt 0:03:25]} 11. h3 {[%emt 0:04:21]} Bxf3 {[%emt 0:00:12]} 12. Bxf3 {[%emt 0:00:03]} fxe5 {[%emt 0:00:23]} 13. fxe5 {[%emt 0:01:05]} e6 {[%emt 0:00:38]} 14. h4 {[%emt 0:00:38]} Nf5 {[%emt 0:08:12]} 15. Bg5 {[%emt 0:12:13]} Qd7 {[%emt 0:01:49]} 16. Nxf5 {[%emt 0:00:16]} Rxf5 {[%emt 0:00:51]} 17. Qd2 {[%emt 0:00:48]} Na5 {[%emt 0:00:53]} 18. b3 {[%emt 0:01:42]} c5 {[%emt 0:06:18]} 19. Bg4 {[%emt 0:08:21]} Rff8 {[%emt 0:06:35]} 20. h5 {[%emt 0:00:12]} gxh5 {[%emt 0:00:36]} 21. Bxh5 {[%emt 0:10:31]} Kg8 {[%emt 0:01:48]} 22. Bg4 {[%emt 0:04:02]} Rf7 {[%emt 0:05:32]} 23. Qd3 {[%emt 0:00:11]} Bf8 {[%emt 0:01:28]} 24. Bf6 {[%emt 0:02:32]} Be7 {[%emt 0:05:53]} 25. Qg6+ {[%emt 0:03:07]} Kf8 {[%emt 0:01:03]} 26. Rxh7 {[%emt 0:00:48]} Bxf6 {[%emt 0:01:21]} 27. Rxf7+ {[%emt 0:03:53]} Qxf7 {[%emt 0:00:40]} 28. Qxf6 {[%emt 0:00:28]} Qxf6 {[%emt 0:01:24]} 29. exf6 {[%emt 0:00:03]} Kf7 {[%emt 0:00:32]} 30. Kd2 {[%emt 0:00:21]} cxd4 {[%emt 0:04:57]} 31. Rf1 {[%emt 0:00:35]} dxc3+ {[%emt 0:01:38]} 32. Kxc3 {[%emt 0:00:04]} Rh8 {[%emt 0:17:42]} 33. Re1 {[%emt 0:00:42]} Kxf6 {[%emt 0:00:11]} 34. Rxe6+ {[%emt 0:00:36]} Kg5 {[%emt 0:01:13]} 35. Bf3 {[%emt 0:00:09]} Rc8+ {[%emt 0:01:55]} 36. Kd2 {[%emt 0:00:38]} Nc6 {[%emt 0:01:12]} 37. Rd6 {[%emt 0:00:59]} Nb4 {[%emt 0:01:58]} 38. a3 {[%emt 0:00:47]} Nc2 {[%emt 0:00:47]} 39. Rxd5+ {[%emt 0:00:18]} Kf6 {[%emt 0:00:20]} 40. Ra5 {[%emt 0:00:44]} Nd4 {[%emt 0:00:19]} 41. Rxa7 {[%emt 0:00:16]} Nxb3+ {[%emt 0:00:22]} 42. Ke3 {[%emt 0:00:17]} Rc3+ {[%emt 0:00:42]} 43. Kf4 {[%emt 0:00:03]} Nc5 {[%emt 0:00:34]} 44. Ra8 {[%emt 0:01:18]} b5 {[%emt 0:00:42]} 45. Rb8 {[%emt 0:00:37]} Ne6+ {[%emt 0:00:31]} 46. Kg4 {[%emt 0:00:13]} Nd4 {[%emt 0:00:43]} 47. Rb6+ {[%emt 0:00:28]} Ke5 {[%emt 0:00:19]} 48. Ra6 {[%emt 0:00:21]} Nc2 {[%emt 0:00:23]} 49. Be2 {[%emt 0:01:00]} Rxa3 {[%emt 0:00:42]} 50. Bxb5 {[%emt 0:00:31]} Rxa6 {[%emt 0:00:16]} 51. Bxa6 {[%emt 0:00:03]} Ne3+ {[%emt 0:00:04]} 1/2-1/2

[Event "84th ESP-ch 2019"]
[Site "Marbella"]
[Date "2019.11.20"]
[Round "5.39"]
[White "Collado Barbas, Laura"]
[Black "Serrano Garcia, Luis"]
[Result "0-1"]
[ECO "A58"]
[WhiteElo "2142"]
[BlackElo "1866"]
[Annotator "ChessBase"]
[PlyCount "68"]
[EventDate "2019.11.16"]
[EventType "swiss"]
[EventCountry "ESP"]
[SourceTitle "playchess.com"]
[Source "ChessBase"]
[SourceQuality "1"]
[TimeControl "5400+30"]

1. d4 {[%emt 0:00:00]} Nf6 {[%emt 0:00:00]} 2. c4 {[%emt 0:00:00]} c5 {[%emt 0:00:00]} 3. d5 {[%emt 0:00:00]} b5 {[%emt 0:00:31]} 4. cxb5 {[%emt 0:00:04]} a6 {[%emt 0:00:12]} 5. bxa6 {[%emt 0:00:17]} g6 {[%emt 0:00:08]} 6. Nc3 {[%emt 0:00:08]} Bg7 {[%emt 0:00:10]} 7. e4 {[%emt 0:01:56]} O-O {[%emt 0:01:41]} 8. Nf3 {[%emt 0:01:01]} Qa5 {[%emt 0:03:46]} 9. Nd2 {[%emt 0:07:35]} Bxa6 {[%emt 0:01:42]} 10. Bxa6 {[%emt 0:04:41]} Qxa6 {[%emt 0:09:03]} 11. a4 e6 {[%emt 0:10:40]} 12. dxe6 {[%emt 0:20:14]} fxe6 {[%emt 0:04:16]} 13. Nb5 {[%emt 0:01:54]} Qc6 {[%emt 0:05:50]} 14. Qc2 {[%emt 0:05:31]} Na6 {[%emt 0:14:29]} 15. O-O {[%emt 0:05:28]} Nb4 {[%emt 0:01:53]} 16. Qb1 {[%emt 0:07:36]} d5 {[%emt 0:05:22]} 17. Ra3 {[%emt 0:11:09]} Nxe4 {[%emt 0:08:44]} 18. Nxe4 {[%emt 0:02:50]} dxe4 {[%emt 0:00:43]} 19. Be3 {[%emt 0:00:55]} Nd3 {[%emt 0:00:49]} 20. b3 {[%emt 0:06:08]} Rf7 {[%emt 0:07:04]} 21. Ra2 {[%emt 0:01:23]} Qd5 {[%emt 0:03:03]} 22. Rc2 {[%emt 0:01:06]} Raf8 {[%emt 0:01:21]} 23. Rc4 {[%emt 0:01:02]} Be5 {[%emt 0:06:36]} 24. Qc2 {[%emt 0:03:14]} Rf5 {[%emt 0:06:01]} 25. h3 {[%emt 0:01:33]} Bb8 {[%emt 0:01:08]} 26. Nc3 {[%emt 0:16:01]} Qe5 {[%emt 0:00:08]} 27. g3 Nxf2 {[%emt 0:04:09]} 28. Bxf2 {[%emt 0:00:48]} Rxf2 {[%emt 0:00:13]} 29. Rxf2 {[%emt 0:00:11]} Qxg3+ {[%emt 0:00:12]} 30. Kf1 {[%emt 0:01:00]} Qxh3+ {[%emt 0:00:31]} 31. Ke1 {[%emt 0:00:13]} Qh1+ {[%emt 0:00:44]} 32. Kd2 {[%emt 0:00:11]} Rxf2+ {[%emt 0:00:11]} 33. Ne2 {[%emt 0:00:01]} Bf4+ {[%emt 0:01:38]} 34. Kc3 {[%emt 0:00:10]} Qf3+ {[%emt 0:00:07] Kd4} 0-1

[Event "84th ESP-ch 2019"]
[Site "Marbella"]
[Date "2019.11.20"]
[Round "5.40"]
[White "De La Cruz Revilla, Miguel"]
[Black "Maceira Moya, Nery"]
[Result "1/2-1/2"]
[ECO "B01"]
[WhiteElo "2138"]
[BlackElo "1773"]
[Annotator "ChessBase"]
[PlyCount "79"]
[EventDate "2019.11.16"]
[EventType "swiss"]
[EventCountry "ESP"]
[SourceTitle "playchess.com"]
[Source "ChessBase"]
[SourceQuality "1"]
[TimeControl "5400+30"]

1. e4 {[%emt 0:01:54]} d5 {[%emt 0:00:00]} 2. exd5 {[%emt 0:07:19]} Qxd5 {[%emt 0:00:00]} 3. Nc3 {[%emt 0:00:04]} Qd8 {[%emt 0:00:07]} 4. Bc4 {[%emt 0:01:09]} Nf6 {[%emt 0:01:17]} 5. d3 {[%emt 0:01:32]} g6 {[%emt 0:00:13]} 6. Bd2 {[%emt 0:00:13]} Bg7 {[%emt 0:00:07]} 7. Nf3 {[%emt 0:01:30]} O-O {[%emt 0:00:52]} 8. O-O {[%emt 0:00:20]} Nc6 {[%emt 0:01:41]} 9. a3 {[%emt 0:00:46]} a6 {[%emt 0:06:38]} 10. h3 {[%emt 0:00:42]} b5 {[%emt 0:01:52]} 11. Ba2 {[%emt 0:00:41]} Bb7 {[%emt 0:00:31]} 12. Qe2 {[%emt 0:00:53]} e6 {[%emt 0:00:50]} 13. Rad1 {[%emt 0:00:13]} Nd4 {[%emt 0:00:37]} 14. Nxd4 {[%emt 0:00:07]} Qxd4 {[%emt 0:00:08]} 15. Be3 {[%emt 0:06:14]} Qd6 {[%emt 0:05:01]} 16. f3 Nh5 {[%emt 0:17:53]} 17. Qf2 {[%emt 0:09:24]} Rfe8 {[%emt 0:14:05]} 18. Ne4 {[%emt 0:02:58]} Qc6 {[%emt 0:03:36]} 19. d4 {[%emt 0:06:21]} Rad8 {[%emt 0:01:00]} 20. c3 {[%emt 0:03:16]} f5 {[%emt 0:06:08]} 21. Nc5 {[%emt 0:01:03]} Bc8 {[%emt 0:00:19]} 22. Bg5 {[%emt 0:06:33]} Rd6 {[%emt 0:01:08]} 23. Rfe1 {[%emt 0:11:50]} h6 {[%emt 0:00:18]} 24. d5 {[%emt 0:04:27]} exd5 {[%emt 0:08:37]} 25. Be7 {[%emt 0:05:06]} Rxe7 {[%emt 0:04:18]} 26. Rxe7 {[%emt 0:00:42]} Bf6 {[%emt 0:00:48]} 27. Ree1 {[%emt 0:09:46]} Kh7 {[%emt 0:00:18]} 28. Nd3 {[%emt 0:01:27]} Be6 {[%emt 0:05:51]} 29. g4 {[%emt 0:04:03]} Ng7 {[%emt 0:00:28]} 30. Ne5 {[%emt 0:02:31]} Qa8 {[%emt 0:03:32]} 31. Kh2 {[%emt 0:02:39]} Qd8 {[%emt 0:00:53]} 32. Qe3 {[%emt 0:01:25]} Bh4 {[%emt 0:00:47]} 33. Qd4 {[%emt 0:04:02]} Bxe1 {[%emt 0:01:43]} 34. Rxe1 {[%emt 0:00:02]} Qh4 {[%emt 0:02:06]} 35. Re2 {[%emt 0:00:42]} fxg4 {[%emt 0:01:47]} 36. fxg4 {[%emt 0:00:15]} h5 {[%emt 0:01:32]} 37. Bb1 {[%emt 0:02:43]} Bxg4 {[%emt 0:01:29]} 38. Nxg4 {[%emt 0:03:28]} hxg4 {[%emt 0:00:29]} 39. Qxg4 {[%emt 0:00:33]} Qxg4 {[%emt 0:00:10]} 40. hxg4 {[%emt 0:00:04]} 1/2-1/2

[Event "84th ESP-ch 2019"]
[Site "Marbella"]
[Date "2019.11.20"]
[Round "5.41"]
[White "Garcia-Blazquez Perez, Manuel"]
[Black "Diaz Mino, Pablo"]
[Result "0-1"]
[ECO "C44"]
[WhiteElo "1856"]
[BlackElo "2135"]
[Annotator "ChessBase"]
[PlyCount "50"]
[EventDate "2019.11.16"]
[EventType "swiss"]
[EventCountry "ESP"]
[SourceTitle "playchess.com"]
[Source "ChessBase"]
[SourceQuality "1"]
[TimeControl "5400+30"]

1. e4 {[%emt 0:00:00]} e5 {[%emt 0:02:12]} 2. Nf3 {[%emt 0:00:00]} Nc6 {[%emt 0:00:05]} 3. d4 {[%emt 0:00:00]} exd4 {[%emt 0:00:04]} 4. Nxd4 {[%emt 0:00:02]} Bb4+ {[%emt 0:00:03]} 5. c3 {[%emt 0:02:46]} Bc5 {[%emt 0:00:04]} 6. Be3 {[%emt 0:00:07]} Bb6 {[%emt 0:00:02]} 7. Nf5 {[%emt 0:04:06]} Bxe3 {[%emt 0:04:20]} 8. Nxe3 {[%emt 0:00:06]} Nf6 {[%emt 0:01:42]} 9. Nd2 {[%emt 0:03:52]} O-O {[%emt 0:00:30]} 10. Be2 {[%emt 0:03:45]} Re8 {[%emt 0:00:46]} 11. Qc2 {[%emt 0:02:28]} d5 {[%emt 0:01:07]} 12. exd5 {[%emt 0:19:03]} Nxd5 13. O-O-O {[%emt 0:06:03]} Nxe3 {[%emt 0:03:02]} 14. fxe3 {[%emt 0:00:05]} Qg5 {[%emt 0:01:35]} 15. Bd3 {[%emt 0:26:15]} h6 {[%emt 0:03:52]} 16. Nc4 {[%emt 0:02:59]} Be6 {[%emt 0:01:27]} 17. Kb1 {[%emt 0:00:51]} Rad8 {[%emt 0:01:53]} 18. e4 {[%emt 0:00:28]} b5 {[%emt 0:03:44]} 19. Nd2 {[%emt 0:00:33]} b4 {[%emt 0:02:10]} 20. Nf3 {[%emt 0:00:14]} Qa5 {[%emt 0:00:24]} 21. c4 {[%emt 0:01:18]} b3 {[%emt 0:08:17]} 22. axb3 {[%emt 0:00:07]} Nb4 {[%emt 0:00:16]} 23. Qe2 {[%emt 0:02:50]} Qa2+ {[%emt 0:00:32]} 24. Kc1 {[%emt 0:00:05]} Nxd3+ {[%emt 0:01:48]} 25. Rxd3 {[%emt 0:00:31]} Qa1+ {[%emt 0:00:07]} 0-1

[Event "84th ESP-ch 2019"]
[Site "Marbella"]
[Date "2019.11.20"]
[Round "5.42"]
[White "Romero Calduch, Sergio"]
[Black "Juan Lepp, Jaime Boris"]
[Result "1-0"]
[ECO "D07"]
[WhiteElo "2130"]
[BlackElo "1746"]
[Annotator "ChessBase"]
[PlyCount "68"]
[EventDate "2019.11.16"]
[EventType "swiss"]
[EventCountry "ESP"]
[SourceTitle "playchess.com"]
[Source "ChessBase"]
[SourceQuality "1"]
[TimeControl "5400+30"]

1. d4 {[%emt 0:00:52]} d5 {[%emt 0:00:00]} 2. c4 {[%emt 0:00:25]} Nc6 {[%emt 0:00:00]} 3. Nc3 {[%emt 0:00:16]} dxc4 {[%emt 0:00:00]} 4. Nf3 {[%emt 0:00:14]} Nf6 {[%emt 0:09:21]} 5. Bg5 {[%emt 0:01:37]} Bg4 {[%emt 0:02:56]} 6. d5 {[%emt 0:01:34]} Bxf3 {[%emt 0:03:57]} 7. exf3 {[%emt 0:00:15]} Ne5 {[%emt 0:01:25]} 8. f4 {[%emt 0:00:30]} Nd3+ {[%emt 0:00:30]} 9. Bxd3 {[%emt 0:04:17]} cxd3 {[%emt 0:03:08]} 10. Qb3 {[%emt 0:00:42]} Rb8 {[%emt 0:05:42]} 11. O-O-O {[%emt 0:04:05]} h6 {[%emt 0:04:08]} 12. Bh4 {[%emt 0:03:12]} Qd6 {[%emt 0:06:47]} 13. Kb1 {[%emt 0:07:00]} a6 {[%emt 0:07:48]} 14. Rhe1 {[%emt 0:06:54]} d2 {[%emt 0:07:47]} 15. Re2 {[%emt 0:05:44]} Qxf4 {[%emt 0:06:22]} 16. Bg3 {[%emt 0:01:34]} Qf5+ {[%emt 0:00:16]} 17. Ka1 {[%emt 0:00:09]} Qd7 {[%emt 0:04:36]} 18. Rdxd2 {[%emt 0:02:06]} Nh5 {[%emt 0:02:57]} 19. d6 {[%emt 0:00:30]} Nxg3 {[%emt 0:00:30]} 20. dxe7 {[%emt 0:12:52]} Nxe2 {[%emt 0:04:37]} 21. Rxd7 {[%emt 0:01:27]} Kxd7 {[%emt 0:08:55]} 22. exf8=Q {[%emt 0:01:09]} Rhxf8 {[%emt 0:00:33]} 23. Qd5+ {[%emt 0:02:57]} Ke7 {[%emt 0:00:30]} 24. Qe4+ {[%emt 0:00:30]} Kd7 {[%emt 0:03:46]} 25. Qxe2 {[%emt 0:02:07]} f5 {[%emt 0:00:30]} 26. Qd3+ {[%emt 0:01:18]} Kc6 {[%emt 0:06:06]} 27. Qc4+ {[%emt 0:01:55]} Kb6 {[%emt 0:00:05]} 28. Qd4+ {[%emt 0:00:33]} Kc6 {[%emt 0:00:45]} 29. Qxg7 {[%emt 0:01:06]} Rbe8 {[%emt 0:02:05]} 30. a3 {[%emt 0:03:47]} b6 {[%emt 0:03:38]} 31. Qxh6+ {[%emt 0:00:29]} Kb7 {[%emt 0:00:34]} 32. Qf4 {[%emt 0:00:10]} Rf7 {[%emt 0:02:33]} 33. h4 {[%emt 0:00:23]} Rg8 {[%emt 0:00:45]} 34. g3 {[%emt 0:01:32]} Rg4 {[%emt 0:00:12]} 1-0

[Event "84th ESP-ch 2019"]
[Site "Marbella"]
[Date "2019.11.21"]
[Round "6.9"]
[White "Rahal, Michael A"]
[Black "Del Rio De Angelis, Salvador G."]
[Result "1/2-1/2"]
[ECO "A05"]
[WhiteElo "2309"]
[BlackElo "2502"]
[Annotator "ChessBase"]
[PlyCount "67"]
[EventDate "2019.11.16"]
[EventType "swiss"]
[EventCountry "ESP"]
[SourceTitle "playchess.com"]
[Source "ChessBase"]
[SourceQuality "1"]
[TimeControl "5400+30"]

1. Nf3 {[%emt 0:00:00]} Nf6 {[%emt 0:00:23]} 2. c4 {[%emt 0:00:03]} e6 {[%emt 0:00:23]} 3. Nc3 {[%emt 0:01:47]} d5 {[%emt 0:00:10]} 4. e3 {[%emt 0:00:46]} dxc4 {[%emt 0:01:28]} 5. Bxc4 {[%emt 0:00:47]} a6 {[%emt 0:00:19]} 6. a4 {[%emt 0:05:19]} Nc6 {[%emt 0:06:38]} 7. d4 {[%emt 0:02:18]} Bb4 {[%emt 0:01:17]} 8. O-O {[%emt 0:02:01]} O-O {[%emt 0:00:11]} 9. Qe2 {[%emt 0:04:44]} h6 {[%emt 0:06:32]} 10. Rd1 {[%emt 0:04:21]} Qe7 {[%emt 0:00:37]} 11. Ne5 {[%emt 0:08:28]} Na5 {[%emt 0:21:20]} 12. Ba2 {[%emt 0:04:59]} c5 {[%emt 0:00:20]} 13. Nd3 {[%emt 0:08:33]} b6 {[%emt 0:06:01]} 14. dxc5 {[%emt 0:02:29]} bxc5 {[%emt 0:00:06]} 15. e4 {[%emt 0:07:00]} Bb7 {[%emt 0:03:58]} 16. f3 {[%emt 0:05:25]} Nc6 {[%emt 0:07:27]} 17. Be3 {[%emt 0:01:27]} Nd4 {[%emt 0:04:25]} 18. Qf2 {[%emt 0:00:43]} e5 {[%emt 0:00:18]} 19. Nxb4 {[%emt 0:03:05]} cxb4 {[%emt 0:00:08]} 20. Nd5 {[%emt 0:00:48]} Bxd5 {[%emt 0:11:14]} 21. Bxd5 {[%emt 0:02:19]} Nxd5 {[%emt 0:01:46]} 22. exd5 {[%emt 0:07:10]} Rac8 {[%emt 0:02:23]} 23. Bxd4 {[%emt 0:02:00]} exd4 {[%emt 0:00:06]} 24. Rxd4 {[%emt 0:03:35]} Qd6 {[%emt 0:00:53]} 25. Rad1 {[%emt 0:01:52]} Rfe8 {[%emt 0:02:04]} 26. Qg3 {[%emt 0:06:17]} Re5 {[%emt 0:00:26]} 27. Qf2 {[%emt 0:03:50]} Rc5 {[%emt 0:02:50]} 28. Rxb4 {[%emt 0:02:42]} Rcxd5 {[%emt 0:00:38]} 29. Rxd5 {[%emt 0:01:55]} Rxd5 {[%emt 0:00:57]} 30. Re4 {[%emt 0:00:36]} Rd1+ {[%emt 0:00:51]} 31. Re1 {[%emt 0:00:04]} Rxe1+ {[%emt 0:00:37]} 32. Qxe1 {[%emt 0:00:04]} Qd4+ {[%emt 0:00:11]} 33. Kf1 {[%emt 0:00:45]} Qxa4 {[%emt 0:00:18]} 34. Qd2 {[%emt 0:00:42]} 1/2-1/2